[Event "*** Titled Tuesday Blitz"]
[Site "Chess.com"]
[Date "2021.02.02"]
[Round "7"]
[White "MasterLeif"]
[Black "HElissalt"]
[Result "0-1"]
[WhiteElo "2416"]
[BlackElo "2271"]
[TimeControl "180+1"]
[EndTime "11:17:23 PST"]
[Termination "HElissalt won by checkmate"]

1. d4 {[%clk 0:03:00.9]} 1... d5 {[%clk 0:02:58.9]} 2. Bf4 {[%clk 0:03:01.1]}
2... Nf6 {[%clk 0:02:58]} 3. e3 {[%clk 0:03:01.3]} 3... e6 {[%clk 0:02:58.2]} 4.
Nd2 {[%clk 0:03:00.2]} 4... Bd6 {[%clk 0:02:58.7]} 5. Ngf3 {[%clk 0:02:56.7]}
5... O-O {[%clk 0:02:56]} 6. Bd3 {[%clk 0:02:56.3]} 6... b6 {[%clk 0:02:56.3]}
7. O-O {[%clk 0:02:55.5]} 7... Bb7 {[%clk 0:02:56.6]} 8. Ne5 {[%clk 0:02:53.7]}
8... Ne4 {[%clk 0:02:56.5]} 9. c3 {[%clk 0:02:37.1]} 9... Nd7 {[%clk 0:02:54.1]}
10. f3 {[%clk 0:02:32.7]} 10... Nxd2 {[%clk 0:02:52.5]} 11. Qxd2 {[%clk
0:02:33.6]} 11... Nxe5 {[%clk 0:02:51.8]} 12. Bxe5 {[%clk 0:02:29.8]} 12... Bxe5
{[%clk 0:02:38.1]} 13. dxe5 {[%clk 0:02:30.7]} 13... f6 {[%clk 0:02:38.1]} 14.
exf6 {[%clk 0:02:23.7]} 14... Qxf6 {[%clk 0:02:35.6]} 15. Rae1 {[%clk
0:02:22.4]} 15... Rad8 {[%clk 0:02:27.3]} 16. Qc2 {[%clk 0:02:21.7]} 16... Qh6
{[%clk 0:01:44]} 17. e4 {[%clk 0:02:20.6]} 17... dxe4 {[%clk 0:01:34.1]} 18.
Bxe4 {[%clk 0:02:21.5]} 18... Rd2 {[%clk 0:01:33]} 19. Bxh7+ {[%clk 0:02:06.5]}
19... Kh8 {[%clk 0:01:29.9]} 20. Rxe6 {[%clk 0:01:25.4]} 20... Qg5 {[%clk
0:00:45.8]} 21. Qg6 {[%clk 0:00:56.2]} 21... Rxg2+ {[%clk 0:00:42.1]} 22. Kh1
{[%clk 0:00:56.8]} 22... Rg1+ {[%clk 0:00:41.6]} 23. Rxg1 {[%clk 0:00:56.8]}
23... Bxf3+ {[%clk 0:00:40.7]} 24. Rg2 {[%clk 0:00:55.9]} 24... Bxg2+ {[%clk
0:00:40.8]} 25. Kg1 {[%clk 0:00:55.8]} 25... Rf1# {[%clk 0:00:41.7]} 0-1

[Event "*** Titled Tuesday Blitz"]
[Site "Chess.com"]
[Date "2021.02.02"]
[Round "7"]
[White "Sippp"]
[Black "johnathan113"]
[Result "0-1"]
[WhiteElo "2766"]
[BlackElo "2601"]
[TimeControl "180+1"]
[EndTime "11:17:28 PST"]
[Termination "johnathan113 won by resignation"]

1. e4 {[%clk 0:02:55.4]} 1... c5 {[%clk 0:02:59.8]} 2. Nf3 {[%clk 0:02:54.9]}
2... g6 {[%clk 0:03:00.1]} 3. d4 {[%clk 0:02:54]} 3... cxd4 {[%clk 0:03:01]} 4.
Nxd4 {[%clk 0:02:53.6]} 4... Bg7 {[%clk 0:03:01.2]} 5. c4 {[%clk 0:02:54.1]}
5... Nc6 {[%clk 0:03:01.5]} 6. Be3 {[%clk 0:02:53.3]} 6... Nf6 {[%clk
0:03:01.5]} 7. Nc3 {[%clk 0:02:53]} 7... O-O {[%clk 0:03:02.1]} 8. Be2 {[%clk
0:02:53]} 8... b6 {[%clk 0:03:03]} 9. O-O {[%clk 0:02:51.2]} 9... Bb7 {[%clk
0:03:03.2]} 10. f3 {[%clk 0:02:44.9]} 10... e6 {[%clk 0:03:03.3]} 11. Qd2 {[%clk
0:02:35.6]} 11... d5 {[%clk 0:03:02.9]} 12. cxd5 {[%clk 0:02:32]} 12... exd5
{[%clk 0:03:03.8]} 13. Nxc6 {[%clk 0:02:30.7]} 13... Bxc6 {[%clk 0:03:04.7]} 14.
e5 {[%clk 0:02:30.2]} 14... Ne8 {[%clk 0:03:05]} 15. f4 {[%clk 0:02:23.1]} 15...
f6 {[%clk 0:03:05.6]} 16. e6 {[%clk 0:01:34.2]} 16... f5 {[%clk 0:03:04.9]} 17.
Rad1 {[%clk 0:01:30.7]} 17... Nc7 {[%clk 0:03:04.7]} 18. Bf3 {[%clk 0:01:26.6]}
18... Qd6 {[%clk 0:03:02.6]} 19. Nxd5 {[%clk 0:01:15.6]} 19... Nxd5 {[%clk
0:02:55.4]} 20. Bxd5 {[%clk 0:01:14.8]} 20... Rfe8 {[%clk 0:02:56.3]} 21. Bb3
{[%clk 0:01:09.3]} 21... Qe7 {[%clk 0:02:53.5]} 22. Qd6 {[%clk 0:01:03.6]} 22...
Bb5 {[%clk 0:02:53.9]} 23. Qxe7 {[%clk 0:00:53.9]} 23... Rxe7 {[%clk 0:02:54.8]}
24. Rf2 {[%clk 0:00:52.3]} 24... Ba6 {[%clk 0:02:54.7]} 25. Rfd2 {[%clk
0:00:46.8]} 25... Rae8 {[%clk 0:02:54.6]} 26. Rd7 {[%clk 0:00:44.3]} 26... Bxb2
{[%clk 0:02:46.2]} 27. Rxe7 {[%clk 0:00:35.6]} 27... Rxe7 {[%clk 0:02:46.3]} 28.
Rd8+ {[%clk 0:00:30.7]} 28... Kg7 {[%clk 0:02:46]} 29. Bd2 {[%clk 0:00:30]}
29... Bf6 {[%clk 0:02:39.7]} 30. Bb4 {[%clk 0:00:20.1]} 30... Rc7 {[%clk
0:02:36.2]} 31. Bf8+ {[%clk 0:00:19.4]} 31... Kh8 {[%clk 0:02:29.8]} 32. e7
{[%clk 0:00:18.8]} 32... h5 {[%clk 0:02:11]} 33. e8=Q {[%clk 0:00:17.9]} 33...
Kh7 {[%clk 0:02:06.3]} 34. Bd6 {[%clk 0:00:16.5]} 34... Bd4+ {[%clk 0:02:04.2]}
35. Kh1 {[%clk 0:00:09.2]} 35... Rc1+ {[%clk 0:02:02.6]} 0-1

[Event "*** Titled Tuesday Blitz"]
[Site "Chess.com"]
[Date "2021.02.02"]
[Round "7"]
[White "ljuks68"]
[Black "KRSilva"]
[Result "1-0"]
[WhiteElo "2379"]
[BlackElo "2217"]
[TimeControl "180+1"]
[EndTime "11:17:28 PST"]
[Termination "ljuks68 won by resignation"]

1. e4 {[%clk 0:01:51.8]} 1... g6 {[%clk 0:02:58.6]} 2. d4 {[%clk 0:01:51.4]}
2... Bg7 {[%clk 0:02:59.5]} 3. Nc3 {[%clk 0:01:51.8]} 3... d6 {[%clk 0:02:59.7]}
4. f4 {[%clk 0:01:51.3]} 4... Nd7 {[%clk 0:02:59.1]} 5. Nf3 {[%clk 0:01:51]}
5... c5 {[%clk 0:02:59.3]} 6. Be3 {[%clk 0:01:49.7]} 6... cxd4 {[%clk
0:02:57.2]} 7. Bxd4 {[%clk 0:01:47.5]} 7... Ngf6 {[%clk 0:02:55.6]} 8. e5 {[%clk
0:01:47.7]} 8... dxe5 {[%clk 0:02:51.6]} 9. fxe5 {[%clk 0:01:48]} 9... Nh5
{[%clk 0:02:52.2]} 10. e6 {[%clk 0:01:48]} 10... fxe6 {[%clk 0:02:50.1]} 11.
Bxg7 {[%clk 0:01:41.7]} 11... Nxg7 {[%clk 0:02:49.9]} 12. Bc4 {[%clk 0:01:40.3]}
12... Qc7 {[%clk 0:02:45.5]} 13. Qe2 {[%clk 0:01:34.5]} 13... Nb6 {[%clk
0:02:37.6]} 14. Bb3 {[%clk 0:01:21.8]} 14... Bd7 {[%clk 0:02:32.6]} 15. O-O-O
{[%clk 0:01:20.6]} 15... O-O-O {[%clk 0:02:30.3]} 16. Kb1 {[%clk 0:01:20.3]}
16... h6 {[%clk 0:02:29.6]} 17. Nd4 {[%clk 0:01:18]} 17... e5 {[%clk 0:02:26.3]}
18. Ndb5 {[%clk 0:01:17.8]} 18... Qb8 {[%clk 0:02:10.8]} 19. Qf2 {[%clk
0:00:55.5]} 19... Bc6 {[%clk 0:01:04.7]} 20. Qf7 {[%clk 0:00:53.6]} 20... Rh7
{[%clk 0:00:48.3]} 21. Qxe7 {[%clk 0:00:49.9]} 21... Re8 {[%clk 0:00:47.8]} 22.
Nd6+ {[%clk 0:00:48.1]} 1-0

[Event "*** Titled Tuesday Blitz"]
[Site "Chess.com"]
[Date "2021.02.02"]
[Round "7"]
[White "Kiborg95"]
[Black "ozates"]
[Result "0-1"]
[WhiteElo "2643"]
[BlackElo "2500"]
[TimeControl "180+1"]
[EndTime "11:17:30 PST"]
[Termination "ozates won by resignation"]

1. e4 {[%clk 0:03:00.9]} 1... c5 {[%clk 0:02:59.4]} 2. Nc3 {[%clk 0:03:00.4]}
2... Nc6 {[%clk 0:02:59.1]} 3. Nge2 {[%clk 0:03:00.7]} 3... d6 {[%clk
0:02:57.7]} 4. d4 {[%clk 0:03:01]} 4... cxd4 {[%clk 0:02:58]} 5. Nxd4 {[%clk
0:03:01.9]} 5... e5 {[%clk 0:02:58.2]} 6. Nf5 {[%clk 0:02:55.3]} 6... Nf6 {[%clk
0:02:29.8]} 7. g3 {[%clk 0:02:47.8]} 7... Bxf5 {[%clk 0:02:24.3]} 8. exf5 {[%clk
0:02:46.8]} 8... d5 {[%clk 0:02:25]} 9. Bg2 {[%clk 0:02:46.1]} 9... e4 {[%clk
0:02:23]} 10. O-O {[%clk 0:02:45.4]} 10... h6 {[%clk 0:02:16.9]} 11. Qe2 {[%clk
0:02:30.8]} 11... Bc5 {[%clk 0:02:13.3]} 12. Rd1 {[%clk 0:02:29.6]} 12... Nd4
{[%clk 0:02:06]} 13. Qd2 {[%clk 0:02:21]} 13... Ng4 {[%clk 0:01:52.3]} 14. Rf1
{[%clk 0:01:32]} 14... Ne5 {[%clk 0:01:36.9]} 15. Kh1 {[%clk 0:01:28]} 15...
Nef3 {[%clk 0:01:32.9]} 16. Qd1 {[%clk 0:01:28]} 16... h5 {[%clk 0:01:17.8]} 17.
h3 {[%clk 0:01:26.4]} 17... Qd7 {[%clk 0:00:59.2]} 18. Bxf3 {[%clk 0:01:18.5]}
18... exf3 {[%clk 0:00:47.8]} 19. Qd3 {[%clk 0:01:18.8]} 19... O-O-O {[%clk
0:00:40]} 20. Be3 {[%clk 0:01:16.6]} 20... Nxf5 {[%clk 0:00:22.1]} 21. Bxc5
{[%clk 0:01:09.1]} 21... Nxg3+ {[%clk 0:00:21.9]} 22. Kh2 {[%clk 0:01:09.6]}
22... Nxf1+ {[%clk 0:00:21.4]} 0-1

[Event "*** Titled Tuesday Blitz"]
[Site "Chess.com"]
[Date "2021.02.02"]
[Round "7"]
[White "AttilaTurzo"]
[Black "Susik_Gaboyan"]
[Result "1-0"]
[WhiteElo "2547"]
[BlackElo "2317"]
[TimeControl "180+1"]
[EndTime "11:17:36 PST"]
[Termination "AttilaTurzo won on time"]

1. d4 {[%clk 0:03:00.9]} 1... Nf6 {[%clk 0:02:43]} 2. Nf3 {[%clk 0:03:00.7]}
2... g6 {[%clk 0:02:42.7]} 3. Bg5 {[%clk 0:03:01.1]} 3... Bg7 {[%clk 0:02:43]}
4. c3 {[%clk 0:03:01.8]} 4... d5 {[%clk 0:02:42.5]} 5. Nbd2 {[%clk 0:03:02]}
5... O-O {[%clk 0:02:42.1]} 6. e3 {[%clk 0:03:02.5]} 6... c5 {[%clk 0:02:41.4]}
7. Be2 {[%clk 0:03:02.8]} 7... Nc6 {[%clk 0:02:40.6]} 8. O-O {[%clk 0:03:02.8]}
8... Qb6 {[%clk 0:02:37]} 9. Qb3 {[%clk 0:03:02.2]} 9... c4 {[%clk 0:02:17.8]}
10. Qa3 {[%clk 0:03:02.4]} 10... Bg4 {[%clk 0:01:57.6]} 11. h3 {[%clk
0:02:58.1]} 11... Bxf3 {[%clk 0:01:57.7]} 12. Bxf3 {[%clk 0:02:59]} 12... e6
{[%clk 0:01:57.4]} 13. b3 {[%clk 0:02:56.2]} 13... cxb3 {[%clk 0:01:46]} 14.
axb3 {[%clk 0:02:57.1]} 14... Rfc8 {[%clk 0:01:45.4]} 15. c4 {[%clk 0:02:54.6]}
15... Qb4 {[%clk 0:01:38.1]} 16. Qxb4 {[%clk 0:02:36.5]} 16... Nxb4 {[%clk
0:01:39]} 17. Ra4 {[%clk 0:02:34.5]} 17... a5 {[%clk 0:01:18]} 18. Rfa1 {[%clk
0:02:28.7]} 18... b6 {[%clk 0:01:08.3]} 19. Bf4 {[%clk 0:02:19.2]} 19... Nd7
{[%clk 0:00:21.3]} 20. Rd1 {[%clk 0:02:15.6]} 20... Nd3 {[%clk 0:00:19.9]} 21.
cxd5 {[%clk 0:02:03.7]} 21... Nb2 {[%clk 0:00:16.3]} 22. dxe6 {[%clk 0:01:58.4]}
22... fxe6 {[%clk 0:00:13.6]} 23. Bxa8 {[%clk 0:01:55.9]} 23... Rxa8 {[%clk
0:00:08.1]} 24. Rc1 {[%clk 0:01:45.8]} 24... Nxa4 {[%clk 0:00:06.9]} 25. bxa4
{[%clk 0:01:46.7]} 25... e5 {[%clk 0:00:06.8]} 26. dxe5 {[%clk 0:01:42.8]} 26...
Nxe5 {[%clk 0:00:07.7]} 27. Rb1 {[%clk 0:01:34.8]} 27... Nc4 {[%clk 0:00:06.3]}
28. Nxc4 {[%clk 0:01:34.6]} 1-0

[Event "*** Titled Tuesday Blitz"]
[Site "Chess.com"]
[Date "2021.02.02"]
[Round "7"]
[White "Coiote53"]
[Black "doons21"]
[Result "0-1"]
[WhiteElo "2369"]
[BlackElo "2557"]
[TimeControl "180+1"]
[EndTime "11:17:37 PST"]
[Termination "doons21 won by resignation"]

1. e4 {[%clk 0:03:00.9]} 1... e6 {[%clk 0:02:55.4]} 2. d4 {[%clk 0:03:00.8]}
2... d5 {[%clk 0:02:55.9]} 3. Nc3 {[%clk 0:03:00.7]} 3... Bb4 {[%clk 0:02:56.5]}
4. e5 {[%clk 0:02:58.2]} 4... Ne7 {[%clk 0:02:56.9]} 5. a3 {[%clk 0:02:58.1]}
5... Bxc3+ {[%clk 0:02:57.3]} 6. bxc3 {[%clk 0:02:59]} 6... c5 {[%clk
0:02:58.2]} 7. Qg4 {[%clk 0:02:58.1]} 7... Kf8 {[%clk 0:02:57.9]} 8. Qd1 {[%clk
0:02:47.9]} 8... Qa5 {[%clk 0:02:55.6]} 9. Bd2 {[%clk 0:02:43.8]} 9... Qa4
{[%clk 0:02:55.1]} 10. Qb1 {[%clk 0:02:38]} 10... c4 {[%clk 0:02:49.1]} 11. Qb4
{[%clk 0:02:19.3]} 11... Qxc2 {[%clk 0:02:25.4]} 12. Nf3 {[%clk 0:02:08]} 12...
Nc6 {[%clk 0:02:24.6]} 13. Qb1 {[%clk 0:01:55.4]} 13... Qxb1+ {[%clk 0:02:23]}
14. Rxb1 {[%clk 0:01:55.7]} 14... b6 {[%clk 0:02:19.5]} 15. Be2 {[%clk
0:01:53.9]} 15... f6 {[%clk 0:02:19.6]} 16. a4 {[%clk 0:01:52.9]} 16... Bd7
{[%clk 0:01:48.8]} 17. Bd1 {[%clk 0:01:48]} 17... fxe5 {[%clk 0:01:34]} 18. Nxe5
{[%clk 0:01:44.2]} 18... Nxe5 {[%clk 0:01:34.2]} 19. dxe5 {[%clk 0:01:45.1]}
19... Nc6 {[%clk 0:01:34.4]} 20. f4 {[%clk 0:01:43.7]} 20... Be8 {[%clk
0:01:24]} 21. Bc2 {[%clk 0:01:40.6]} 21... Bg6 {[%clk 0:01:22.8]} 22. Bxg6
{[%clk 0:01:39.3]} 22... hxg6 {[%clk 0:01:23.7]} 23. O-O {[%clk 0:01:39.5]}
23... Na5 {[%clk 0:01:21]} 24. Be3 {[%clk 0:01:17.9]} 24... Ke7 {[%clk
0:01:18.2]} 25. Rb5 {[%clk 0:01:13.1]} 25... Kd7 {[%clk 0:01:15.5]} 26. h3
{[%clk 0:01:10.1]} 26... Kc6 {[%clk 0:01:10.6]} 27. g4 {[%clk 0:00:59.9]} 27...
Rxh3 {[%clk 0:01:08.5]} 28. Bd4 {[%clk 0:00:56.5]} 28... Rah8 {[%clk 0:01:04.6]}
29. f5 {[%clk 0:00:46.9]} 29... gxf5 {[%clk 0:01:00.9]} 30. gxf5 {[%clk
0:00:46.8]} 30... Rh1+ {[%clk 0:01:00.8]} 31. Kg2 {[%clk 0:00:46.6]} 31... R8h2+
{[%clk 0:01:00.3]} 32. Kg3 {[%clk 0:00:46]} 0-1

[Event "*** Titled Tuesday Blitz"]
[Site "Chess.com"]
[Date "2021.02.02"]
[Round "7"]
[White "Vaathi_Coming"]
[Black "SirStrateg"]
[Result "1-0"]
[WhiteElo "2838"]
[BlackElo "2665"]
[TimeControl "180+1"]
[EndTime "11:17:43 PST"]
[Termination "Vaathi_Coming won by resignation"]

1. Nf3 {[%clk 0:03:00.9]} 1... Nf6 {[%clk 0:03:00.1]} 2. b3 {[%clk 0:03:01.6]}
2... d5 {[%clk 0:02:59.7]} 3. Bb2 {[%clk 0:03:02.5]} 3... Bf5 {[%clk 0:03:00.2]}
4. e3 {[%clk 0:03:02.8]} 4... e6 {[%clk 0:03:00.7]} 5. Be2 {[%clk 0:03:02.4]}
5... h6 {[%clk 0:02:58.5]} 6. O-O {[%clk 0:03:02.4]} 6... Nbd7 {[%clk
0:02:58.9]} 7. c4 {[%clk 0:03:02.9]} 7... c6 {[%clk 0:02:58.7]} 8. d4 {[%clk
0:02:59.9]} 8... Bd6 {[%clk 0:02:54.6]} 9. Ne5 {[%clk 0:03:00.2]} 9... O-O
{[%clk 0:02:52.3]} 10. Nd2 {[%clk 0:02:58.4]} 10... Ne4 {[%clk 0:02:52]} 11. f4
{[%clk 0:02:54.5]} 11... Nxd2 {[%clk 0:02:49]} 12. Qxd2 {[%clk 0:02:55.4]} 12...
Nxe5 {[%clk 0:02:48.6]} 13. fxe5 {[%clk 0:02:52.7]} 13... Be7 {[%clk 0:02:49]}
14. Rf2 {[%clk 0:02:37]} 14... Bh4 {[%clk 0:02:43.8]} 15. g3 {[%clk 0:02:36.8]}
15... Bg5 {[%clk 0:02:43.7]} 16. h4 {[%clk 0:02:33.9]} 16... Be7 {[%clk
0:02:43.2]} 17. Raf1 {[%clk 0:02:30]} 17... a6 {[%clk 0:02:32.1]} 18. Rxf5
{[%clk 0:02:18.9]} 18... exf5 {[%clk 0:02:32.4]} 19. Rxf5 {[%clk 0:02:19.1]}
19... b5 {[%clk 0:02:24.1]} 20. cxd5 {[%clk 0:02:09.8]} 20... Qxd5 {[%clk
0:02:19.7]} 21. Bf3 {[%clk 0:02:05.5]} 21... Qe6 {[%clk 0:02:18.1]} 22. Be4
{[%clk 0:01:59]} 22... Rad8 {[%clk 0:02:02.7]} 23. Qc2 {[%clk 0:01:36.2]} 23...
c5 {[%clk 0:02:00]} 24. Rf2 {[%clk 0:01:36.1]} 24... cxd4 {[%clk 0:01:55.1]} 25.
exd4 {[%clk 0:01:37]} 25... Qg4 {[%clk 0:01:47]} 26. Kh2 {[%clk 0:01:32.9]}
26... Qc8 {[%clk 0:01:17.6]} 27. Qd3 {[%clk 0:01:29]} 27... Kh8 {[%clk
0:01:06.9]} 28. d5 {[%clk 0:01:29.2]} 28... Qg4 {[%clk 0:01:05.1]} 29. Bf5
{[%clk 0:01:18.4]} 29... Qh5 {[%clk 0:01:01.3]} 30. d6 {[%clk 0:01:17.9]} 30...
Bg5 {[%clk 0:00:58.2]} 31. Qd4 {[%clk 0:01:13.4]} 31... Rfe8 {[%clk 0:00:47.1]}
32. Bg4 {[%clk 0:01:11.4]} 32... Qg6 {[%clk 0:00:42]} 33. hxg5 {[%clk
0:01:08.7]} 33... Qxg5 {[%clk 0:00:42.5]} 34. Rxf7 {[%clk 0:01:04.5]} 1-0

[Event "*** Titled Tuesday Blitz"]
[Site "Chess.com"]
[Date "2021.02.02"]
[Round "7"]
[White "andrewtnb"]
[Black "kai_nov"]
[Result "1-0"]
[WhiteElo "2298"]
[BlackElo "2379"]
[TimeControl "180+1"]
[EndTime "11:17:50 PST"]
[Termination "andrewtnb won on time"]

1. d4 {[%clk 0:02:57.5]} 1... d5 {[%clk 0:02:53]} 2. c4 {[%clk 0:02:56.4]} 2...
e6 {[%clk 0:02:52.8]} 3. Nc3 {[%clk 0:02:50.5]} 3... c6 {[%clk 0:02:51.8]} 4. e4
{[%clk 0:02:45.4]} 4... dxe4 {[%clk 0:02:49.8]} 5. Nxe4 {[%clk 0:02:46.3]} 5...
Bb4+ {[%clk 0:02:37.9]} 6. Nc3 {[%clk 0:02:44.2]} 6... c5 {[%clk 0:02:32.6]} 7.
Be3 {[%clk 0:02:41.8]} 7... Nf6 {[%clk 0:02:28.7]} 8. Ne2 {[%clk 0:02:38.3]}
8... O-O {[%clk 0:02:24.9]} 9. a3 {[%clk 0:02:37]} 9... cxd4 {[%clk 0:02:18.9]}
10. axb4 {[%clk 0:02:34.1]} 10... dxe3 {[%clk 0:02:16.3]} 11. Qxd8 {[%clk
0:02:32.3]} 11... exf2+ {[%clk 0:02:15.5]} 12. Kxf2 {[%clk 0:02:32.7]} 12...
Rxd8 {[%clk 0:02:15.6]} 13. h3 {[%clk 0:02:29.9]} 13... e5 {[%clk 0:01:54.5]}
14. Ng3 {[%clk 0:02:26.8]} 14... Nc6 {[%clk 0:01:48.7]} 15. b5 {[%clk
0:02:24.5]} 15... Nd4 {[%clk 0:01:44.5]} 16. Nge4 {[%clk 0:02:19.1]} 16... Nxe4+
{[%clk 0:01:38.9]} 17. Nxe4 {[%clk 0:02:20]} 17... Bf5 {[%clk 0:01:36.9]} 18.
Nc3 {[%clk 0:02:17.8]} 18... Nc2 {[%clk 0:01:18]} 19. Ra4 {[%clk 0:02:11.6]}
19... Rd2+ {[%clk 0:01:15]} 20. Kg3 {[%clk 0:02:07]} 20... h5 {[%clk 0:00:51.9]}
21. Be2 {[%clk 0:02:05.1]} 21... g6 {[%clk 0:00:35.8]} 22. Bf3 {[%clk
0:02:04.3]} 22... Rad8 {[%clk 0:00:28.3]} 23. Rxa7 {[%clk 0:01:51.6]} 23... Ne3
{[%clk 0:00:24.2]} 24. b3 {[%clk 0:01:43.4]} 24... R8d3 {[%clk 0:00:16.9]} 25.
Ne4 {[%clk 0:01:17.3]} 25... Bxe4 {[%clk 0:00:13.4]} 26. Bxe4 {[%clk 0:01:18.2]}
26... Nf1+ {[%clk 0:00:07]} 27. Kh4 {[%clk 0:01:18.3]} 1-0

[Event "*** Titled Tuesday Blitz"]
[Site "Chess.com"]
[Date "2021.02.02"]
[Round "7"]
[White "IMAghasiyevKamal"]
[Black "Camels1981"]
[Result "1-0"]
[WhiteElo "2571"]
[BlackElo "2287"]
[TimeControl "180+1"]
[EndTime "11:17:51 PST"]
[Termination "IMAghasiyevKamal won by resignation"]

1. d4 {[%clk 0:03:00.9]} 1... Nf6 {[%clk 0:02:59]} 2. c4 {[%clk 0:02:59.7]} 2...
g6 {[%clk 0:02:58.7]} 3. Nc3 {[%clk 0:02:52.3]} 3... Bg7 {[%clk 0:02:56]} 4. e4
{[%clk 0:02:48.9]} 4... O-O {[%clk 0:02:56.5]} 5. Be2 {[%clk 0:02:42.8]} 5... d6
{[%clk 0:02:56.1]} 6. Be3 {[%clk 0:02:37.9]} 6... c6 {[%clk 0:02:54.2]} 7. g4
{[%clk 0:02:28.5]} 7... a6 {[%clk 0:02:53.9]} 8. g5 {[%clk 0:02:22.3]} 8... Ne8
{[%clk 0:02:53.7]} 9. h4 {[%clk 0:02:22.1]} 9... b5 {[%clk 0:02:53.6]} 10. h5
{[%clk 0:02:21.7]} 10... e5 {[%clk 0:02:52.3]} 11. dxe5 {[%clk 0:02:17.5]} 11...
Bxe5 {[%clk 0:02:48.9]} 12. Nf3 {[%clk 0:02:13.5]} 12... Qe7 {[%clk 0:02:42.5]}
13. Nxe5 {[%clk 0:02:12.7]} 13... dxe5 {[%clk 0:02:42]} 14. hxg6 {[%clk
0:01:53.4]} 14... fxg6 {[%clk 0:02:41.3]} 15. Nd5 {[%clk 0:01:50.7]} 15... cxd5
{[%clk 0:02:05.2]} 16. Qxd5+ {[%clk 0:01:48.8]} 16... Be6 {[%clk 0:02:05]} 17.
Qxa8 {[%clk 0:01:48.3]} 17... Nc7 {[%clk 0:01:43.7]} 18. Qa7 {[%clk 0:01:41.9]}
18... bxc4 {[%clk 0:01:43.5]} 19. Qc5 {[%clk 0:01:40.8]} 19... Qf7 {[%clk
0:01:41]} 20. Qxe5 {[%clk 0:01:38.7]} 20... Nc6 {[%clk 0:01:34.4]} 21. Qc5
{[%clk 0:01:38.5]} 21... Nd8 {[%clk 0:01:25.7]} 22. O-O-O {[%clk 0:01:25.7]}
22... Nb7 {[%clk 0:01:19.7]} 23. Qb6 {[%clk 0:01:21.3]} 23... Nb5 {[%clk
0:01:19.5]} 24. f4 {[%clk 0:00:59.4]} 24... c3 {[%clk 0:01:18.9]} 25. Bxb5
{[%clk 0:00:40.5]} 25... axb5 {[%clk 0:01:17.4]} 26. Qxb5 {[%clk 0:00:29.7]}
26... Bxa2 {[%clk 0:01:17]} 27. bxc3 {[%clk 0:00:25.6]} 27... Bc4 {[%clk
0:01:12.4]} 28. Qd7 {[%clk 0:00:23.9]} 1-0

[Event "*** Titled Tuesday Blitz"]
[Site "Chess.com"]
[Date "2021.02.02"]
[Round "7"]
[White "almo64"]
[Black "AsadliVugar"]
[Result "1-0"]
[WhiteElo "2737"]
[BlackElo "2841"]
[TimeControl "180+1"]
[EndTime "11:17:54 PST"]
[Termination "almo64 won by resignation"]

1. d4 {[%clk 0:03:00]} 1... g6 {[%clk 0:03:00.1]} 2. e4 {[%clk 0:02:59.1]} 2...
Bg7 {[%clk 0:03:00.8]} 3. Nc3 {[%clk 0:02:55.7]} 3... d6 {[%clk 0:03:01.4]} 4.
h4 {[%clk 0:02:54.1]} 4... h6 {[%clk 0:02:55.6]} 5. f4 {[%clk 0:02:49.4]} 5...
h5 {[%clk 0:02:52.7]} 6. Nf3 {[%clk 0:02:47]} 6... Nh6 {[%clk 0:02:51.8]} 7. Be3
{[%clk 0:02:46.5]} 7... Nd7 {[%clk 0:02:40.1]} 8. Qd2 {[%clk 0:02:46.5]} 8... c5
{[%clk 0:02:40.1]} 9. dxc5 {[%clk 0:02:38.6]} 9... Nxc5 {[%clk 0:02:39.5]} 10.
Bxc5 {[%clk 0:02:32.5]} 10... dxc5 {[%clk 0:02:39.7]} 11. Qxd8+ {[%clk
0:02:28.2]} 11... Kxd8 {[%clk 0:02:40.3]} 12. O-O-O+ {[%clk 0:02:28.2]} 12...
Kc7 {[%clk 0:02:33.5]} 13. Nd5+ {[%clk 0:02:19.6]} 13... Kb8 {[%clk 0:02:33.8]}
14. Nxe7 {[%clk 0:02:18.9]} 14... Bg4 {[%clk 0:02:34.2]} 15. Bc4 {[%clk
0:02:10.2]} 15... Re8 {[%clk 0:02:31.3]} 16. Nd5 {[%clk 0:01:46.9]} 16... Rxe4
{[%clk 0:02:21.7]} 17. Rhe1 {[%clk 0:01:38.2]} 17... Rxc4 {[%clk 0:02:13.2]} 18.
Re8+ {[%clk 0:01:34.4]} 18... Bc8 {[%clk 0:02:13.4]} 19. b3 {[%clk 0:01:24.9]}
19... Rd4 {[%clk 0:02:04.8]} 20. Nxd4 {[%clk 0:01:22.7]} 20... cxd4 {[%clk
0:02:05.3]} 21. Rde1 {[%clk 0:00:48.4]} 21... Nf5 {[%clk 0:02:03.8]} 22. Rg8
{[%clk 0:00:48.1]} 22... b6 {[%clk 0:01:49.2]} 23. Ne7 {[%clk 0:00:35.9]} 23...
Kb7 {[%clk 0:01:32.7]} 24. Nxf5 {[%clk 0:00:30.3]} 24... Bxf5 {[%clk 0:01:24.7]}
25. Re7+ {[%clk 0:00:29.2]} 25... Kc6 {[%clk 0:01:18.8]} 26. Rxa8 {[%clk
0:00:29]} 26... Bf6 {[%clk 0:01:19]} 27. Rxf7 {[%clk 0:00:27.9]} 27... Bxh4
{[%clk 0:01:19.3]} 28. Rxf5 {[%clk 0:00:27.1]} 28... gxf5 {[%clk 0:01:20.2]} 29.
Kd2 {[%clk 0:00:25.2]} 29... Bg3 {[%clk 0:01:19.7]} 30. Kd3 {[%clk 0:00:25.1]}
30... Bxf4 {[%clk 0:01:19.7]} 31. Rh8 {[%clk 0:00:25]} 31... Be3 {[%clk
0:01:18.4]} 32. Rxh5 {[%clk 0:00:24.6]} 32... f4 {[%clk 0:01:19.2]} 33. Ke4
{[%clk 0:00:24.3]} 33... a5 {[%clk 0:01:18.6]} 34. a4 {[%clk 0:00:24.1]} 34...
Kd6 {[%clk 0:01:17.5]} 35. Rb5 {[%clk 0:00:23.5]} 35... Kc6 {[%clk 0:01:17.8]}
36. Rd5 {[%clk 0:00:23.1]} 1-0